bitfinex/quotes_BTCUSD_20250226
["timestamp","ask_amount","ask_price","bid_price","bid_amount"]
[1740585778492,0.02,87901.0,87856.0,0.09106535]
[1740585778493,0.02,87907.0,87863.0,0.3]
[1740585778706,0.02,87905.0,87863.0,0.3]
[1740585778905,0.170694,87877.0,87863.0,0.3]
[1740585779131,0.227572,87884.0,87864.0,0.3248545]
[1740585779332,0.00832497,87886.0,87864.0,0.3248545]
[1740585779333,0.00832497,87886.0,87865.0,1.5]
[1740585779708,0.170714,87866.0,87865.0,1.5]
[1740585780117,0.170714,87866.0,87837.0,0.5478]
[1740585780118,0.04,87888.0,87838.0,0.3]
[1740585780378,0.170734,87856.0,87838.0,0.3]
[1740585780587,0.01454085,87885.0,87839.0,0.3259545]
[1740585780766,0.02,87888.0,87833.0,0.0751]
[1740585780767,0.00832497,87866.0,87833.0,0.0751]
[1740585781017,0.00832497,87866.0,87833.0,0.4010545]
[1740585781018,0.227629,87862.0,87833.0,0.4010545]
[1740585781423,0.227671,87846.0,87833.0,0.4010545]
[1740585781632,0.00832497,87866.0,87833.0,0.40119624]
[1740585781833,0.00832497,87866.0,87843.0,0.09106535]
[1740585782021,0.23594597,87866.0,87851.0,0.170742]
[1740585782225,0.00832497,87861.0,87853.0,0.0824]
[1740585782751,0.170737,87854.0,87853.0,0.0824]
[1740585782873,0.00832497,87861.0,87853.0,0.0824]
[1740585783567,0.17906197,87854.0,87853.0,0.0824]
[1740585783687,0.17906197,87854.0,87835.0,0.01124]
[1740585783688,0.00832497,87854.0,87841.0,0.0758]
[1740585783896,0.227653,87853.0,87841.0,0.0758]
[1740585784330,0.227655,87852.0,87841.0,0.0758]
[1740585784531,0.227658,87851.0,87841.0,0.0758]
[1740585784915,0.227683,87842.0,87839.0,0.3259545]
[1740585785173,0.170765,87840.0,87839.0,0.3259545]
[1740585785413,0.170776,87834.0,87821.0,0.0799]
[1740585786307,0.18126398,87834.0,87821.0,0.0799]
[1740585787173,0.18958895,87834.0,87813.0,0.3259545]
[1740585787578,0.17078,87832.0,87822.0,1.5]
[1740585787783,0.17078,87832.0,87831.0,0.00118933]
[1740585788456,0.17910497,87832.0,87831.0,0.00118933]
[1740585789018,0.17910497,87832.0,87831.0,3.3e-07]
[1740585789184,0.51364582,87832.0,87831.0,3.3e-07]
[1740585789360,0.62750278,87832.0,87831.0,3.3e-07]
[1740585789563,0.97580278,87832.0,87831.0,3.3e-07]
[1740585790036,0.84194582,87832.0,87831.0,3.3e-07]
[1740585790245,0.86194582,87832.0,87831.0,3.3e-07]
[1740585790550,0.86194582,87832.0,87812.0,0.000846]
[1740585790551,0.170817,87813.0,87812.0,0.000846]
[1740585790694,0.170777,87813.0,87812.0,0.00098733]
[1740585791048,0.170777,87813.0,87812.0,3.3e-07]
[1740585791747,0.170777,87813.0,87812.0,0.00084813]
[1740585792124,0.17910197,87813.0,87812.0,0.00084813]
[1740585792791,0.17910197,87813.0,87812.0,0.00088813]
[1740585794337,0.17910197,87813.0,87812.0,1.3e-07]
[1740585794962,0.47910197,87813.0,87812.0,1.3e-07]
[1740585796692,0.49364282,87813.0,87812.0,1.3e-07]
[1740585797888,0.01454085,87811.0,87782.0,1.5]
[1740585798090,0.00832497,87813.0,87782.0,0.00014219]
[1740585798296,0.00832497,87813.0,87783.0,0.01315422]
[1740585798544,0.17086,87791.0,87790.0,1.5]
[1740585800177,0.17086,87791.0,87790.0,1.50004]
[1740585800375,0.17918497,87791.0,87790.0,1.50004]
[1740585801937,0.17918497,87791.0,87790.0,4e-05]
[1740585802105,0.26544467,87791.0,87790.0,4e-05]
[1740585802314,0.57998552,87791.0,87790.0,4e-05]
[1740585802914,0.49372582,87791.0,87790.0,4e-05]
[1740585803316,0.49372582,87791.0,87782.0,0.00014219]
[1740585803317,0.48541585,87783.0,87782.0,1.9e-07]
[1740585803930,0.83371585,87783.0,87782.0,1.9e-07]
[1740585804135,0.170914,87763.0,87762.0,3.9e-07]
[1740585804332,0.48545485,87763.0,87762.0,6.4e-07]
[1740585804579,0.55678864,87763.0,87762.0,6.4e-07]
[1740585804998,0.56511361,87763.0,87762.0,6.4e-07]
[1740585805201,0.49377982,87763.0,87762.0,6.4e-07]
[1740585805585,0.49377982,87763.0,87762.0,4.064e-05]
[1740585806775,0.17923897,87763.0,87762.0,4.064e-05]
[1740585807686,0.17923897,87763.0,87762.0,1.50004064]
[1740585807918,0.00832497,87763.0,87762.0,1.54714064]
[1740585808111,0.00832497,87763.0,87762.0,1.71805664]
[1740585808309,0.00832497,87763.0,87762.0,2.42151114]
[1740585808541,0.0312463,87800.0,87763.0,0.0775]
[1740585808745,0.170912,87764.0,87763.0,0.0775]
[1740585809246,0.170912,87764.0,87763.0,1.5]
[1740585809892,0.170914,87763.0,87762.0,4.064e-05]
[1740585810502,0.470914,87763.0,87762.0,4.064e-05]
[1740585811361,0.170938,87751.0,87743.0,0.0008462]
[1740585813287,0.227869,87770.0,87743.0,0.0008462]
[1740585813484,0.170938,87751.0,87743.0,0.0008462]
[1740585813885,0.170938,87751.0,87750.0,1.5008474]
[1740585814233,0.00041125,87763.0,87750.0,1.5008474]
[1740585814431,0.00041125,87763.0,87752.0,0.0783]
[1740585814946,0.00041125,87763.0,87753.0,0.0464]
[1740585815132,0.170932,87754.0,87753.0,0.0464]
[1740585816915,0.00041125,87763.0,87753.0,0.0464]
[1740585817362,0.01454085,87793.0,87753.0,0.0464]
[1740585817498,0.398669,87792.0,87753.0,0.04681125]
[1740585817699,0.227811,87792.0,87755.0,1.5]
[1740585817895,0.170928,87756.0,87755.0,1.5]
[1740585818980,0.170928,87756.0,87753.0,0.00041125]
[1740585818981,0.170932,87754.0,87753.0,0.00041125]
[1740585819571,0.170932,87754.0,87753.0,1.50041125]
[1740585822071,0.227869,87770.0,87753.0,1.50041125]
[1740585822275,0.170932,87754.0,87753.0,1.50041125]
[1740585823597,0.170932,87754.0,87753.0,0.00041125]
[1740585826658,0.170932,87754.0,87753.0,0.00126005]
[1740585826854,0.170932,87754.0,87753.0,5e-08]
[1740585831193,0.170926,87757.0,87754.0,0.0784]
[1740585831398,0.17093,87755.0,87754.0,0.0784]
[1740585831802,0.17093,87755.0,87754.0,1.5784]
[1740585832011,0.17093,87755.0,87754.0,1.5]
[1740585832635,0.227904,87757.0,87753.0,5e-08]
[1740585832854,0.170932,87754.0,87753.0,5e-08]
[1740585835970,0.170965,87738.0,87736.0,0.37229515]
[1740585836207,0.170965,87737.0,87736.0,0.37229515]
[1740585836666,0.170965,87737.0,87736.0,1.87229515]
[1740585837368,0.227947,87740.0,87736.0,1.87229515]
[1740585837727,0.170965,87737.0,87736.0,1.87229515]
[1740585838936,0.170965,87737.0,87736.0,1.82449515]
[1740585839695,0.170965,87737.0,87736.0,0.32449515]
[1740585839875,0.170983,87728.0,87723.0,0.0819]
[1740585840237,0.227974,87729.0,87724.0,1.500847]
[1740585840441,0.170983,87728.0,87724.0,1.500847]
[1740585840869,0.170988,87725.0,87724.0,0.000847]
[1740585841068,0.170988,87725.0,87683.0,0.000847]
[1740585841069,0.17101,87714.0,87702.0,0.0795474]
[1740585841494,0.17101,87714.0,87705.0,1.5]
[1740585841738,0.22801,87716.0,87702.0,0.0795474]
[1740585841941,0.171031,87703.0,87702.0,0.0008474]
[1740585842759,0.0086357,87706.0,87702.0,0.0008474]
[1740585843100,0.227974,87729.0,87703.0,0.0481]
[1740585843395,0.228015,87714.0,87704.0,0.0802]
[1740585843529,0.171025,87706.0,87705.0,0.01291874]
[1740585843756,0.171027,87705.0,87704.0,0.0802]
[1740585844133,0.171031,87703.0,87702.0,0.0008474]
[1740585846303,0.171035,87701.0,87695.0,0.0008474]
[1740585847398,0.171045,87696.0,87695.0,0.0008474]
[1740585848664,0.171045,87696.0,87695.0,1.5008474]
[1740585849384,0.228014,87714.0,87695.0,1.5008474]
[1740585849702,0.228039,87705.0,87695.0,1.5008474]
[1740585849909,0.171019,87710.0,87695.0,0.0008474]
[1740585850126,0.00862298,87729.0,87705.0,0.09106535]
[1740585850343,0.00862298,87729.0,87706.0,0.70349109]
[1740585850450,0.0112095,87737.0,87715.0,1.925]
[1740585850672,0.09930935,87730.0,87716.0,0.3]
[1740585850879,0.09930935,87730.0,87729.0,0.46856535]
[1740585851168,0.27028835,87730.0,87729.0,0.40199515]
[1740585851300,0.27028835,87730.0,87729.0,1.5775]
[1740585851523,0.09930935,87730.0,87729.0,1.5775]
[1740585852310,0.09930935,87730.0,87729.0,1.90199515]
[1740585853131,0.27028835,87730.0,87729.0,1.90199515]
[1740585853335,0.27113755,87730.0,87729.0,1.90199515]
[1740585853849,0.27113755,87730.0,87729.0,1.5]
[1740585854049,0.10015855,87730.0,87720.0,0.0816]
[1740585854211,0.170996,87721.0,87720.0,0.0816]
[1740585855430,0.227977,87728.0,87720.0,0.0816]
[1740585855700,0.17099,87725.0,87720.0,0.0816]
[1740585855993,0.0008492,87730.0,87721.0,0.01293422]
[1740585856165,0.0008492,87730.0,87722.0,0.00159566]
[1740585856579,0.0008492,87730.0,87721.0,0.01293422]
[1740585857574,0.1718282,87730.0,87729.0,1.5]
[1740585857796,0.0008492,87730.0,87729.0,1.5]
[1740585858001,0.0008492,87730.0,87729.0,0.02532677]
[1740585858245,0.0008492,87730.0,87721.0,0.227995]
[1740585858427,0.0008492,87730.0,87727.0,0.170983]
[1740585858747,0.0008492,87730.0,87729.0,0.170981]
[1740585858975,0.0008492,87730.0,87729.0,1.5]
[1740585860740,0.1718282,87730.0,87729.0,1.82449515]
[1740585860935,0.1718282,87730.0,87729.0,1.5]
[1740585861270,0.1718282,87730.0,87716.0,0.32449515]
[1740585861271,0.0008492,87730.0,87716.0,0.32449515]
[1740585862319,0.0008492,87730.0,87725.0,1.5]
[1740585863367,0.0008492,87730.0,87726.0,0.00159572]
[1740585863567,0.0008492,87730.0,87728.0,0.3]
[1740585863763,0.0008492,87730.0,87729.0,0.62609075]
[1740585864028,0.0008492,87730.0,87729.0,0.75278353]
[1740585864808,0.09930935,87783.0,87730.0,0.3]
[1740585865012,0.09930935,87783.0,87732.0,0.3]
[1740585865216,0.3,87782.0,87735.0,0.01454085]
[1740585865392,0.3,87782.0,87737.0,0.31454085]
[1740585865799,0.3,87782.0,87738.0,0.00159527]
[1740585866437,0.01241193,87754.0,87738.0,0.00159527]
[1740585866648,0.01241193,87754.0,87737.0,0.31454085]
[1740585867728,0.01241193,87754.0,87732.0,0.3]
[1740585868301,0.01241193,87754.0,87739.0,0.3]
[1740585868729,0.01165697,87754.0,87739.0,0.3]
[1740585869119,0.01673858,87753.0,87741.0,0.3]
[1740585869325,0.01673858,87753.0,87741.0,0.62449515]
[1740585871160,0.01673858,87753.0,87741.0,0.32449515]
[1740585871968,0.01165697,87754.0,87741.0,0.32449515]
[1740585873356,0.01165697,87754.0,87742.0,0.0807]
[1740585873983,0.01165697,87754.0,87743.0,0.00159547]
[1740585874231,0.01165697,87754.0,87744.0,0.0495]
[1740585874571,0.01165697,87754.0,87744.0,0.04964219]
[1740585875172,0.01165697,87754.0,87745.0,0.32449515]
[1740585877564,0.01165697,87754.0,87746.0,1.5]
[1740585878184,0.01165697,87754.0,87747.0,0.00159537]
[1740585878512,0.01165697,87754.0,87746.0,1.5]
[1740585881240,0.01165697,87754.0,87747.0,0.32449515]
[1740585881830,0.01165697,87754.0,87748.0,1.5]
[1740585884653,0.01165697,87754.0,87747.0,0.32449515]
[1740585887185,0.01165697,87754.0,87744.0,0.10014219]
[1740585888697,0.01165697,87754.0,87745.0,1.5]
[1740585890567,0.01165697,87754.0,87746.0,0.0807]
[1740585891180,0.01165697,87754.0,87747.0,1.5]
[1740585892579,0.01454085,87784.0,87747.0,1.5]
[1740585892782,0.02587676,87784.0,87747.0,1.5]
[1740585893805,0.09106535,87780.0,87747.0,1.5]
[1740585894681,0.3,87783.0,87747.0,1.5]
[1740585894682,0.02587676,87784.0,87748.0,0.3]
[1740585894837,0.326989,87783.0,87748.0,0.3]
[1740585895043,0.02587676,87784.0,87748.0,0.3]
[1740585895360,0.315852,87783.0,87748.0,0.3]
[1740585896003,0.00851326,87752.0,87748.0,0.3]
[1740585896261,0.00851326,87752.0,87747.0,1.5]
[1740585896935,0.00851326,87752.0,87744.0,0.09227103]
[1740585897285,0.01835376,87752.0,87744.0,0.09227103]
[1740585897627,0.01454085,87749.0,87721.0,0.32449515]
[1740585897794,0.01454085,87746.0,87723.0,0.00014037]
[1740585898189,0.01454085,87744.0,87723.0,0.00014037]
[1740585898374,0.16072,87743.0,87723.0,0.00014037]
[1740585898580,0.01315085,87742.0,87723.0,0.00014037]
[1740585899549,0.01454085,87744.0,87723.0,0.00014037]
[1740585899680,0.09106535,87747.0,87723.0,0.00014037]
[1740585899874,0.459186,87746.0,87723.0,0.00014037]
[1740585900286,0.17099,87724.0,87723.0,0.00014037]
[1740585900914,0.170996,87721.0,87709.0,0.3]
[1740585901112,0.170996,87721.0,87720.0,0.00049987]
[1740585901469,0.227985,87725.0,87708.0,1.82449515]
[1740585901677,0.17101,87714.0,87713.0,0.00054773]
[1740585901873,0.17101,87714.0,87713.0,0.00012313]
[1740585903073,0.227992,87722.0,87702.0,1.5]
[1740585903074,0.171031,87703.0,87702.0,1.5]
[1740585903281,0.171031,87703.0,87702.0,1.50041099]
[1740585903705,0.171031,87703.0,87702.0,0.00041099]
[1740585904462,0.228014,87714.0,87702.0,0.00041099]
[1740585904463,0.227994,87722.0,87702.0,0.00041099]
[1740585904626,0.171022,87708.0,87702.0,0.32490614]
[1740585904971,1.595449,87750.0,87702.0,0.32490614]
[1740585904972,0.02,87772.0,87710.0,0.0807]
[1740585905104,0.02,87778.0,87722.0,0.3807]
[1740585905449,0.22793,87746.0,87728.0,0.3]
[1740585905670,0.170969,87736.0,87731.0,0.0463]
[1740585905938,0.01129128,87746.0,87733.0,0.527964]
[1740585906180,0.170971,87734.0,87733.0,0.3796]
[1740585906403,0.227946,87740.0,87733.0,0.3796]
[1740585906581,0.11085163,87761.0,87735.0,0.3]
[1740585906759,0.11085163,87761.0,87737.0,0.3]
[1740585906967,0.170963,87738.0,87737.0,0.3]
[1740585907167,0.170963,87738.0,87737.0,0.62449515]
[1740585907395,0.17096,87740.0,87737.0,0.62449515]
[1740585907549,0.227894,87760.0,87737.0,2.12449515]
[1740585907749,0.22792,87750.0,87737.0,2.12449515]
[1740585908039,0.227938,87744.0,87737.0,2.12449515]
[1740585908236,0.01154228,87761.0,87737.0,2.12449515]
[1740585908391,0.01154228,87761.0,87743.0,0.3]
[1740585908591,0.09930935,87780.0,87754.0,0.3]
[1740585908798,0.170926,87757.0,87756.0,0.3]
[1740585909132,0.170926,87757.0,87756.0,0.62449515]
[1740585909944,0.170926,87757.0,87756.0,2.12449515]
[1740585911605,0.170926,87757.0,87756.0,0.62449515]
[1740585914196,0.170426,87757.0,87756.0,0.62449515]
[1740585914398,0.170426,87757.0,87756.0,0.32449515]
[1740585914986,0.171274,87757.0,87756.0,0.32449515]
[1740585916210,0.000848,87757.0,87756.0,0.62449515]
[1740585917017,0.000848,87757.0,87756.0,0.79542315]
[1740585917215,0.000848,87757.0,87756.0,0.92552315]
[1740585917780,0.000848,87757.0,87756.0,0.75459515]
[1740585917984,0.000848,87757.0,87756.0,2.25459515]
[1740585918942,0.171774,87757.0,87756.0,2.25459515]
[1740585919144,0.171774,87757.0,87756.0,0.70739515]
[1740585919566,0.171774,87757.0,87756.0,0.32449515]
[1740585921455,0.170944,87748.0,87747.0,0.00388]
[1740585921676,0.0112,87751.0,87728.0,0.32449515]
[1740585922041,0.170981,87729.0,87728.0,0.20948676]
[1740585922277,0.170981,87729.0,87728.0,0.0001232]
[1740585922491,0.15549845,87729.0,87728.0,0.0001232]
[1740585924651,0.22791,87754.0,87728.0,0.0001232]
[1740585924864,0.03589108,87780.0,87729.0,0.3]
[1740585925071,0.02598269,87796.0,87756.0,0.518928]
[1740585925278,0.02598269,87806.0,87756.0,0.72829156]
[1740585925483,0.227835,87783.0,87756.0,0.82153241]
[1740585925688,0.02598269,87815.0,87756.0,0.82153241]
[1740585925689,0.170901,87770.0,87756.0,0.82153241]
[1740585925894,0.227807,87794.0,87756.0,0.82153241]
[1740585925895,0.170898,87772.0,87756.0,0.82153241]
[1740585926099,0.227886,87764.0,87756.0,0.63606356]
[1740585926310,0.170911,87765.0,87756.0,0.80699156]
[1740585926516,0.09930935,87768.0,87756.0,0.80699156]
[1740585926733,0.09930935,87768.0,87767.0,0.470907]
[1740585926933,0.09930935,87768.0,87767.0,0.546007]
[1740585927169,0.27021435,87768.0,87767.0,0.3751]
[1740585927757,0.27021435,87768.0,87767.0,1.8751]
[1740585928582,0.27021435,87768.0,87767.0,1.5]
[1740585928962,0.09930935,87768.0,87767.0,1.5]
[1740585929171,0.170905,87768.0,87767.0,1.5]
[1740585929732,0.341662,87806.0,87768.0,0.3]
[1740585929975,0.09106535,87810.0,87770.0,0.3]
[1740585929976,0.227826,87786.0,87770.0,0.3]
[1740585930176,0.00012297,87787.0,87770.0,0.3]
[1740585930377,0.00012297,87787.0,87772.0,0.3]
[1740585930825,0.170895,87773.0,87772.0,0.3]
[1740585931030,0.227826,87786.0,87772.0,0.3]
[1740585931454,0.227854,87776.0,87772.0,0.3]
[1740585931644,0.170886,87778.0,87772.0,0.3]
[1740585931823,0.00012297,87787.0,87774.0,0.3]
[1740585932251,0.170891,87775.0,87774.0,0.3]
[1740585932600,0.17705316,87775.0,87774.0,0.3]
[1740585932795,0.00616216,87775.0,87774.0,0.3]
[1740585933064,0.17705316,87775.0,87774.0,0.3]
[1740585933292,0.170891,87775.0,87774.0,0.3]
[1740585933738,0.17704982,87775.0,87774.0,0.3]
[1740585933969,0.170924,87758.0,87757.0,0.20936356]
[1740585934097,0.170928,87756.0,87755.0,0.0794]
[1740585934300,0.170928,87756.0,87745.0,0.20936356]
[1740585934301,0.170947,87746.0,87745.0,0.20936356]
[1740585934503,0.17707095,87746.0,87745.0,0.20936356]
[1740585935321,0.17707095,87746.0,87745.0,0.20948676]
[1740585935930,0.17707095,87746.0,87745.0,0.0001232]
[1740585935931,0.24003139,87746.0,87745.0,0.0001232]
[1740585936363,0.17707095,87746.0,87745.0,0.0001232]
[1740585936805,0.17707095,87746.0,87724.0,0.20936356]
[1740585936806,0.170981,87729.0,87724.0,0.20936356]
[1740585937008,0.170981,87729.0,87725.0,0.3]
[1740585937216,0.1770771,87729.0,87725.0,1.8]
[1740585937419,0.1770771,87729.0,87725.0,1.5]
[1740585938052,0.1770771,87729.0,87726.0,0.3]
[1740585939048,0.1770771,87729.0,87728.0,0.3004237]
[1740585939223,0.0060961,87729.0,87728.0,0.4714067]
[1740585939424,0.0001229,87746.0,87728.0,0.0004237]
[1740585939730,0.227933,87745.0,87729.0,0.3]
[1740585939934,0.0001229,87746.0,87733.0,0.01454085]
[1740585940139,0.0001229,87746.0,87745.0,1.970949]
[1740585940750,0.0001229,87746.0,87745.0,2.27605341]
[1740585940876,0.09930935,87768.0,87767.0,0.470907]
[1740585941077,0.09930935,87768.0,87767.0,0.59056356]
[1740585941315,0.09930935,87768.0,87767.0,0.76147056]
[1740585941534,0.09930935,87768.0,87767.0,0.59056356]
[1740585941736,0.09930935,87768.0,87767.0,2.09056356]
[1740585943740,0.0008474,87773.0,87767.0,2.09056356]
[1740585943741,0.0008474,87773.0,87768.0,0.3]
[1740585943975,0.00097055,87773.0,87768.0,0.3]
[1740585944220,0.170902,87770.0,87768.0,0.3]
[1740585944412,0.00097055,87773.0,87768.0,0.3]
[1740585944700,0.17186555,87773.0,87768.0,0.3]
[1740585945101,0.01435263,87772.0,87768.0,0.3]
[1740585945306,0.170899,87771.0,87768.0,0.3]
[1740585945485,0.170897,87772.0,87767.0,0.29056356]
[1740585945692,0.01434967,87771.0,87767.0,0.29056356]
[1740585945959,0.01434967,87771.0,87768.0,0.50936356]
[1740585946267,0.00097055,87773.0,87770.0,0.01454085]
[1740585946407,0.00097055,87773.0,87772.0,0.48543785]
[1740585946610,0.00097055,87773.0,87772.0,1.35634894]
[1740585947258,0.00097055,87773.0,87772.0,1.05716356]
[1740585947559,0.17186555,87773.0,87772.0,1.05716356]
[1740585947958,0.1786493,87773.0,87772.0,1.05716356]
[1740585948145,0.0077543,87773.0,87772.0,1.05716356]
[1740585948342,0.0077543,87773.0,87772.0,1.22806056]
[1740585948986,0.00097055,87773.0,87772.0,2.72806056]
[1740585949166,0.00097055,87773.0,87772.0,2.85634894]
[1740585949772,0.000848,87818.0,87775.0,0.02]
[1740585949973,0.000848,87818.0,87773.0,0.41174085]
[1740585949974,0.00083477,87813.0,87800.0,0.22779]
[1740585950173,0.00083477,87813.0,87804.0,0.227778]
[1740585950399,0.00083477,87813.0,87807.0,0.3]
[1740585950647,0.17165377,87813.0,87807.0,0.3]
[1740585950866,0.170827,87808.0,87807.0,0.3]
[1740585951298,0.17766299,87808.0,87807.0,0.3]
[1740585952210,0.170836,87803.0,87802.0,0.3]
[1740585952600,0.170838,87802.0,87801.0,0.20936356]
[1740585953045,0.17771068,87802.0,87801.0,0.20936356]
[1740585953657,0.17087,87786.0,87785.0,0.20936356]
[1740585954035,0.17365436,87786.0,87785.0,0.20936356]
[1740585955512,0.17365436,87786.0,87785.0,0.50936356]
[1740585956142,0.1804223,87786.0,87785.0,0.50936356]
[1740585956584,0.0095523,87786.0,87770.0,0.28646356]
[1740585956811,0.170899,87771.0,87770.0,0.28646356]
[1740585957012,0.170899,87771.0,87770.0,0.20936356]
[1740585957209,0.17864348,87771.0,87770.0,0.20936356]
[1740585957417,0.17854653,87771.0,87770.0,0.50936356]
[1740585957578,0.17854653,87771.0,87770.0,2.00936356]
[1740585957781,0.227858,87774.0,87771.0,0.3]
[1740585958043,0.170897,87772.0,87771.0,0.3]
[1740585958726,0.227812,87792.0,87771.0,0.3]
[1740585959224,0.170897,87772.0,87771.0,0.3]
[1740585959571,0.17397791,87772.0,87771.0,0.3]
[1740585959776,0.17971649,87772.0,87771.0,0.3]
[1740585961046,0.11473107,87774.0,87771.0,0.3]
[1740585961248,0.17964726,87772.0,87771.0,0.3]
[1740585961489,0.170897,87772.0,87771.0,0.3]
[1740585961694,0.1782323,87772.0,87771.0,0.3]
[1740585962246,0.1782323,87772.0,87770.0,1.5]
[1740585962247,0.170899,87771.0,87770.0,1.5]
[1740585962471,0.170903,87769.0,87748.0,0.0778]
[1740585962900,0.170903,87769.0,87751.0,1.5]
[1740585963368,0.17524361,87769.0,87751.0,1.5]
[1740585963579,0.170936,87752.0,87751.0,1.5]
[1740585963797,0.170936,87752.0,87751.0,1.50012315]
[1740585964012,0.17523216,87752.0,87751.0,0.00012315]
[1740585964979,0.170981,87729.0,87728.0,0.0004237]
[1740585965183,0.00429616,87752.0,87728.0,0.0005466]
[1740585965542,0.09106535,87765.0,87728.0,0.0005466]
[1740585965661,0.00717911,87764.0,87728.0,0.0005466]
[1740585966452,0.23506411,87764.0,87728.0,0.0005466]
[1740585966660,0.23506411,87764.0,87736.0,0.082]
[1740585966860,0.170958,87741.0,87736.0,0.082]
[1740585966989,0.227933,87745.0,87736.0,0.082]
[1740585967192,0.170963,87738.0,87736.0,0.082]
[1740585967414,0.170965,87737.0,87736.0,0.082]
[1740585967720,0.17808826,87737.0,87736.0,0.082]
[1740585967924,0.170979,87730.0,87729.0,0.3]
[1740585968139,0.00712326,87737.0,87729.0,0.3]
[1740585968476,0.00712326,87737.0,87736.0,0.519567]
[1740585968477,0.01682808,87737.0,87736.0,0.519567]
[1740585968681,0.01682808,87737.0,87736.0,2.22965538]
[1740585968812,0.227844,87780.0,87737.0,0.31454085]
[1740585969015,0.227844,87780.0,87739.0,0.01454085]
[1740585969230,0.0869,87801.0,87741.0,0.01454085]
[1740585969231,0.227857,87775.0,87741.0,0.01454085]
[1740585969407,0.227821,87788.0,87743.0,0.01454085]
[1740585969611,0.00718094,87773.0,87770.0,1.5]
[1740585969841,0.047848,87816.0,87770.0,1.5]
[1740585969842,0.227809,87793.0,87771.0,0.3776]
[1740585970047,0.1717424,87774.0,87771.0,0.3776]
[1740585970254,0.0008474,87774.0,87771.0,0.3776]
[1740585970461,0.00718391,87773.0,87772.0,0.00159492]
[1740585970679,0.0008474,87774.0,87771.0,0.3776]
[1740585970940,0.00737225,87773.0,87771.0,0.0776]
[1740585971193,0.00012308,87773.0,87772.0,0.00159469]
[1740585971639,0.00012308,87773.0,87771.0,0.0776]
[1740585971839,0.00012308,87773.0,87772.0,0.00159473]
[1740585972042,0.00012308,87773.0,87771.0,0.0776]
[1740585972486,0.170897,87772.0,87771.0,0.0776]
[1740585972635,0.00012308,87773.0,87771.0,0.0776]
[1740585973506,0.17814026,87772.0,87771.0,0.0776]
[1740585974085,0.00724326,87772.0,87771.0,0.0776]
[1740585974559,0.00012308,87773.0,87771.0,0.0776]
[1740585975279,0.00724622,87772.0,87771.0,0.0776]
[1740585975529,0.00012308,87773.0,87771.0,0.0776]
[1740585975999,0.00012308,87773.0,87772.0,0.31454085]
[1740585976242,0.0008474,87774.0,87773.0,0.09184085]
[1740585976448,0.0008474,87774.0,87773.0,0.50558838]
[1740585976647,0.0008474,87774.0,87773.0,0.52558838]
[1740585977163,0.0008474,87774.0,87773.0,0.66194253]
[1740585977443,0.0008474,87774.0,87773.0,0.67648338]
[1740585977643,0.0008474,87774.0,87773.0,2.17648338]
[1740585979501,0.0048474,87774.0,87773.0,2.17648338]
[1740585979702,0.228598,87816.0,87802.0,0.0787]
[1740585979703,0.000848,87816.0,87802.0,0.0787]
[1740585979929,0.000848,87816.0,87810.0,0.3]
[1740585979930,0.00083477,87813.0,87810.0,0.3]
[1740585980148,0.00083477,87813.0,87812.0,0.3]
[1740585980353,0.17165177,87813.0,87812.0,0.3]
[1740585980499,0.00698529,87813.0,87812.0,1.8]
[1740585980884,0.17165177,87813.0,87812.0,1.8]
[1740585981249,0.17780229,87813.0,87812.0,1.8]
[1740585981448,0.17780229,87813.0,87812.0,0.3]
[1740585981869,0.170858,87792.0,87791.0,1.5764]
[1740585982097,0.170858,87792.0,87791.0,1.5]
[1740585982306,0.00698529,87813.0,87780.0,0.0798]
[1740585982307,0.170873,87785.0,87780.0,0.0798]
[1740585982498,0.09106535,87811.0,87780.0,0.0798]
[1740585982499,0.00604055,87792.0,87780.0,0.0798]
[1740585982705,0.170868,87787.0,87782.0,0.3]
[1740585982927,0.22782,87789.0,87782.0,0.3]
[1740585983177,0.00601097,87786.0,87782.0,0.3]
[1740585983349,0.00433275,87785.0,87782.0,0.3]
[1740585983553,0.00170488,87785.0,87782.0,0.3]
[1740585983785,0.00170488,87785.0,87780.0,0.0798]
[1740585984013,0.170862,87790.0,87780.0,0.0798]
[1740585984214,0.00604357,87784.0,87781.0,0.00798]
[1740585984341,0.17086,87791.0,87781.0,0.00798]
[1740585984564,0.23387633,87790.0,87781.0,0.00798]
[1740585984767,0.00605833,87790.0,87781.0,0.00798]
[1740585984992,0.227772,87807.0,87781.0,0.00798]
[1740585985194,0.170897,87772.0,87771.0,0.0004237]
[1740585985426,0.170881,87781.0,87771.0,0.0004237]
[1740585985596,0.09106535,87799.0,87771.0,0.0004237]
[1740585986003,0.170887,87777.0,87771.0,0.0004237]
[1740585986326,0.227795,87798.0,87771.0,0.1713217]
[1740585986534,0.00607004,87806.0,87771.0,0.0004237]
[1740585986779,0.170873,87785.0,87776.0,0.3]
[1740585987018,0.227777,87805.0,87776.0,0.3]
[1740585987220,0.00648046,87806.0,87771.0,0.0004237]
[1740585987578,0.00648046,87806.0,87773.0,0.470895]
[1740585987778,0.17088,87781.0,87778.0,0.3]
[1740585987985,0.170883,87779.0,87778.0,0.3]
[1740585988721,0.170883,87779.0,87778.0,1.8]
[1740585988930,0.00598666,87780.0,87771.0,0.0004237]
[1740585988931,0.170897,87772.0,87771.0,0.0004237]
[1740585989131,0.00598666,87780.0,87750.0,0.0822]
[1740585989132,0.09106535,87780.0,87750.0,0.0822]
[1740585989255,0.170938,87751.0,87750.0,0.0822]
[1740585989454,0.170933,87754.0,87750.0,0.08232308]
[1740585989662,0.23382241,87772.0,87750.0,0.08232308]
[1740585989868,0.170923,87759.0,87751.0,1.5]
[1740585990101,0.00595941,87772.0,87751.0,1.670936]
[1740585990102,0.00165778,87772.0,87751.0,1.670936]
[1740585990306,0.09106535,87780.0,87752.0,0.00159528]
[1740585990523,0.00604527,87779.0,87751.0,1.5]
[1740585990731,0.00604527,87779.0,87752.0,0.3]
[1740585990966,0.09106535,87780.0,87750.0,0.38232308]
[1740585990967,0.227893,87761.0,87750.0,0.38232308]
[1740585991169,0.170928,87757.0,87750.0,0.38232308]